fUST/lending_fUST_20240612
["ID","MTS","AMOUNT","RATE_DAILY","PERIOD"]
[329248830,1718201444473,-500.0,0.00016438,2]
[329248833,1718201444485,-500.0,0.00016438,2]
[329248838,1718201444507,-1048.66,0.00016438,2]
[329248841,1718201444530,-500.0,0.00016438,2]
[329248844,1718201444544,-500.0,0.00016438,2]
[329248848,1718201444574,-500.0,0.00016438,2]
[329248851,1718201444587,-500.0,0.00016438,2]
[329248854,1718201444603,-500.0,0.00016438,2]
[329248856,1718201444615,-500.0,0.00016438,2]
[329248857,1718201444628,-500.0,0.00016438,2]
[329248859,1718201444638,-922.1,0.00016438,2]
[329248861,1718201444649,-500.0,0.00016438,2]
[329248863,1718201444665,-1158.98,0.00016438,2]
[329248865,1718201444679,-500.0,0.00016438,2]
[329248868,1718201444695,-500.0,0.00016438,2]
[329248870,1718201444706,-500.0,0.00016438,2]
[329248872,1718201444717,-500.0,0.00016438,2]
[329248875,1718201444750,-564.8,0.00016438,2]
[329248877,1718201444767,-500.0,0.00016438,2]
[329248879,1718201444781,-500.0,0.00016438,2]
[329248881,1718201444796,-500.0,0.00016438,2]
[329248883,1718201444809,-500.0,0.00016438,2]
[329248885,1718201444822,-926.29,0.00016438,2]
[329248887,1718201444838,-500.0,0.00016438,2]
[329248889,1718201444849,-500.0,0.00016438,2]
[329248891,1718201444861,-500.0,0.00016438,2]
[329248893,1718201444878,-500.0,0.00016438,2]
[329248895,1718201444889,-500.0,0.00016438,2]
[329248897,1718201444900,-500.0,0.00016438,2]
[329248900,1718201444913,-2013.97,0.00016438,2]
[329248901,1718201444925,-500.0,0.00016438,2]
[329248903,1718201444937,-500.0,0.00016438,2]
[329248906,1718201444951,-500.0078982,0.00016438,2]
[329248908,1718201444962,-1200.82,0.00016438,2]
[329248910,1718201444974,-6682.41,0.00016438,2]
[329248912,1718201444985,-6682.41,0.00016438,2]
[329248914,1718201444996,-6682.41,0.00016438,2]
[329248916,1718201445026,-6682.41,0.00016438,2]
[329248918,1718201445040,-6682.41,0.00016438,2]
[329248919,1718201445052,-588.69096662,0.00016438,2]
[329248921,1718201445065,-1726.6,0.00016438,2]
[329248923,1718201445087,-500.0,0.00016438,2]
[329248924,1718201445099,-2002.29,0.00016438,2]
[329248926,1718201445112,-500.0,0.00016438,2]
[329248928,1718201445159,-500.0,0.00016438,2]
[329248929,1718201445181,-500.0,0.00016438,2]
[329248932,1718201445200,-500.0,0.00016438,2]
[329248934,1718201445215,-500.0,0.00016438,2]
[329248937,1718201445232,-500.0,0.00016438,2]
[329248938,1718201445244,-831.61,0.00016438,2]
[329248941,1718201445265,-1877.02,0.00016438,2]
[329248943,1718201445279,-500.0,0.00016438,2]
[329248945,1718201445295,-500.0,0.00016438,2]
[329248947,1718201445307,-437.7783306,0.00016438,2]
[329248949,1718201445330,-500.0,0.00016438,2]
[329248951,1718201445347,-500.0,0.00016438,2]
[329248952,1718201445360,-500.0,0.00016438,2]
[329248954,1718201445381,-500.0,0.00016438,2]
[329248957,1718201445396,-500.0,0.00016438,2]
[329248959,1718201445422,-500.0,0.00016438,2]
[329248962,1718201445457,-500.0,0.00016438,2]
[329248964,1718201445480,-500.0,0.00016438,2]
[329248966,1718201445494,-500.0,0.00016438,2]
[329248968,1718201445507,-500.0,0.00016438,2]
[329248970,1718201445518,-500.0,0.00016438,2]
[329248972,1718201445532,-500.0,0.00016438,2]
[329248975,1718201445546,-500.0,0.00016438,2]
[329248977,1718201445559,-500.0,0.00016438,2]
[329248979,1718201445576,-500.0,0.00016438,2]
[329248980,1718201445587,-500.0,0.00016438,2]
[329248982,1718201445599,-500.0,0.00016438,2]
[329248984,1718201445610,-500.0,0.00016438,2]
[329248986,1718201445621,-500.0,0.00016438,2]
[329248988,1718201445634,-500.0,0.00016438,2]
[329248990,1718201445646,-500.0,0.00016438,2]
[329248992,1718201445657,-500.0,0.00016438,2]
[329248994,1718201445667,-5479.05,0.00016438,2]
[329248996,1718201445678,-500.0,0.00016438,2]
[329248998,1718201445688,-806.51,0.00016438,2]
[329249000,1718201445700,-806.51,0.00016438,2]
[329249002,1718201445711,-806.51,0.00016438,2]
[329249004,1718201445721,-806.51,0.00016438,2]
[329249006,1718201445733,-1098.74,0.00016438,2]
[329249008,1718201445747,-806.51,0.00016438,2]
[329249010,1718201445760,-806.51,0.00016438,2]
[329249012,1718201445770,-500.0,0.00016438,2]
[329249014,1718201445782,-1208.47,0.00016438,2]
[329249016,1718201445795,-500.0,0.00016438,2]
[329249018,1718201445806,-3618.05,0.00016438,2]
[329249020,1718201445821,-500.0,0.00016438,2]
[329249022,1718201445838,-500.0,0.00016438,2]
[329249024,1718201445851,-501.77541228,0.00016438,2]
[329249026,1718201445865,-500.0,0.00016438,2]
[329249028,1718201445877,-500.0,0.00016438,2]
[329249030,1718201445891,-500.0,0.00016438,2]
[329249033,1718201445908,-500.0,0.00016438,2]
[329249035,1718201445922,-17386.73,0.00016438,2]
[329249037,1718201445935,-557.62297591,0.00016438,2]
[329249039,1718201445959,-500.0,0.00016438,2]
[329249041,1718201445970,-500.0,0.00016438,2]
[329249043,1718201445981,-500.0,0.00016438,2]
[329249045,1718201445992,-651.96,0.00016438,2]
[329249047,1718201446006,-500.0,0.00016438,2]
[329249049,1718201446020,-500.0,0.00016438,2]
[329249051,1718201446033,-785.77,0.00016438,2]
[329249052,1718201446051,-2595.72,0.00016438,2]
[329249055,1718201446064,-500.0,0.00016438,2]
[329249056,1718201446079,-500.0,0.00016438,2]
[329249058,1718201446100,-500.0,0.00016438,2]
[329249060,1718201446119,-500.0,0.00016438,2]
[329249063,1718201446158,-1084.9,0.00016438,2]
[329249065,1718201446171,-522.21627097,0.00016438,2]
[329249067,1718201446185,-500.0,0.00016438,2]
[329249069,1718201446196,-500.0,0.00016438,2]
[329249071,1718201446207,-500.0,0.00016438,2]
[329249073,1718201446218,-5855.68,0.00016438,2]
[329249075,1718201446233,-500.0,0.00016438,2]
[329249077,1718201446243,-1729.02,0.00016438,2]
[329249079,1718201446257,-500.0,0.00016438,2]
[329249081,1718201446274,-6458.08,0.00016438,2]
[329249083,1718201446293,-500.0,0.00016438,2]
[329249085,1718201446305,-8650.31,0.00016438,2]
[329249087,1718201446319,-299.97,0.00016438,2]
[329249089,1718201446331,-500.0,0.00016438,2]
[329249091,1718201446347,-13863.06,0.00016438,2]
[329249093,1718201446367,-500.0,0.00016438,2]
[329249096,1718201446386,-929.6,0.00016438,2]
[329249098,1718201446408,-500.0,0.00016438,2]
[329249101,1718201446423,-500.0,0.00016438,2]
[329249103,1718201446434,-500.0,0.00016438,2]
[329249105,1718201446445,-175.26534583,0.00016438,2]
[329249106,1718201446456,-500.0,0.00016438,2]
[329249109,1718201446469,-500.0,0.00016438,2]
[329249110,1718201446480,-500.0,0.00016438,2]
[329249112,1718201446492,-589.35,0.00016438,2]
[329249114,1718201446503,-1042.65,0.00016438,2]
[329249116,1718201446519,-500.0,0.00016438,2]
[329249118,1718201446539,-500.0,0.00016438,2]
[329249120,1718201446552,-500.0,0.00016438,2]
[329249122,1718201446568,-504.95465891,0.00016438,2]
[329249124,1718201446581,-500.0,0.00016438,2]
[329249126,1718201446592,-500.0,0.00016438,2]
[329249128,1718201446603,-500.0,0.00016438,2]
[329249131,1718201446617,-500.0,0.00016438,2]
[329249132,1718201446628,-500.0,0.00016438,2]
[329249134,1718201446646,-546.04903319,0.00016438,2]
[329249137,1718201446658,-500.0,0.00016438,2]
[329249138,1718201446674,-500.0,0.00016438,2]
[329249140,1718201446689,-500.0,0.00016438,2]
[329249142,1718201446702,-500.0,0.00016438,2]
[329249144,1718201446715,-500.0,0.00016438,2]
[329249146,1718201446734,-500.0,0.00016438,2]
[329249148,1718201446746,-1007.57660034,0.00016475,2]
[329249149,1718201446764,-6682.41,0.0001661,2]
[329249151,1718201446779,-1007.57660034,0.00016612,2]
[329249153,1718201446799,-153.0,0.000167,2]
[329249155,1718201446825,-153.0,0.000167,2]
[329249159,1718201446876,-454.4294858,0.000167,2]
[329249162,1718201446934,-153.0,0.000167,2]
[329249165,1718201446967,-500.0,0.00016711,2]
[329249168,1718201446997,-500.0,0.00016711,2]
[329249170,1718201447023,-500.0,0.00016711,2]
[329249173,1718201447050,-6682.41,0.00016711,2]
[329249174,1718201447076,-6682.41,0.00016711,2]
[329249176,1718201447105,-6682.41,0.00016711,2]
[329249178,1718201447142,-500.0,0.00016711,2]
[329249179,1718201447183,-500.0,0.00016711,2]
[329249181,1718201447212,-500.0,0.00016711,2]
[329249183,1718201447282,-500.0,0.00016711,2]
[329249186,1718201447330,-806.51,0.00016711,2]
[329249187,1718201447357,-806.51,0.00016711,2]
[329249189,1718201447408,-806.51,0.00016711,2]
[329249191,1718201447453,-500.0,0.00016712,2]
[329249193,1718201447485,-500.0,0.00016712,2]
[329249195,1718201447529,-500.0,0.00016712,2]
[329249197,1718201447559,-506.30707113,0.00016712,2]
[329249200,1718201447608,-500.0,0.00016712,2]
[329249201,1718201447622,-500.0,0.00016712,2]
[329249203,1718201447636,-500.0,0.00016712,2]
[329249205,1718201447661,-554.63,0.00016712,4]
[329249207,1718201447682,-506.90361651,0.00016712,2]
[329249210,1718201447708,-500.0,0.00016712,2]
[329249212,1718201447735,-500.0,0.00016712,2]
[329249214,1718201447759,-500.0,0.00016712,2]
[329249217,1718201447775,-518.96664118,0.00016712,2]
[329249219,1718201447796,-250.0,0.00016712,2]
[329249221,1718201447827,-463.27680263,0.00016712,2]
[329249223,1718201447855,-500.0,0.00016712,2]
[329249225,1718201447872,-509.60591812,0.00016712,2]
[329249227,1718201447891,-500.0,0.00016712,2]
[329249229,1718201447903,-521.8,0.00016712,2]
[329249231,1718201447914,-500.0,0.00016712,2]
[329249233,1718201447925,-503.1027841,0.00016712,2]
[329249239,1718201447955,-500.0,0.00016712,2]
[329249242,1718201447984,-500.0,0.00016712,2]
[329249243,1718201447997,-500.0,0.00016712,2]
[329249244,1718201448010,-500.0,0.00016712,2]
[329249245,1718201448022,-500.0,0.00016712,2]
[329249246,1718201448034,-500.0,0.00016712,2]
[329249247,1718201448046,-500.0,0.00016712,2]
[329249248,1718201448056,-500.0,0.00016712,2]
[329249249,1718201448071,-500.0,0.00016712,2]
[329249250,1718201448081,-469.47275204,0.00016712,2]
[329249251,1718201448097,-508.73609276,0.00016712,2]
[329249252,1718201448109,-500.0,0.00016712,2]
[329249253,1718201448120,-901.64,0.00016712,2]
[329249254,1718201448155,-500.0,0.00016712,2]
[329249255,1718201448180,-542.58,0.00016712,2]
[329249256,1718201448207,-549.95,0.00016712,2]
[329249257,1718201448217,-525.34171483,0.00016712,2]
[329249258,1718201448228,-501.02754867,0.00016712,2]
[329249259,1718201448239,-500.0,0.00016712,2]
[329249261,1718201448250,-500.0,0.00016712,2]
[329249263,1718201448262,-762.56,0.00016712,2]
[329249265,1718201448273,-500.0,0.00016712,2]
[329249267,1718201448284,-500.0,0.00016712,2]
[329249269,1718201448297,-500.0,0.00016712,2]
[329249271,1718201448315,-500.0,0.00016712,2]
[329249273,1718201448325,-500.0,0.00016712,2]
[329249275,1718201448335,-500.0,0.00016712,2]
[329249277,1718201448346,-500.0,0.00016712,2]
[329249279,1718201448357,-502.79293394,0.00016712,2]
[329249281,1718201448368,-500.0,0.00016712,2]
[329249283,1718201448379,-500.0,0.00016712,2]
[329249284,1718201448390,-500.0,0.00016712,2]
[329249286,1718201448401,-500.0,0.00016712,2]
[329249288,1718201448413,-500.0,0.00016712,2]
[329249291,1718201448426,-500.0,0.00016712,2]
[329249293,1718201448442,-500.0,0.00016712,2]
[329249295,1718201448453,-636.0,0.00016712,2]
[329249297,1718201448465,-532.04,0.00016712,2]
[329249299,1718201448476,-500.0,0.00016712,2]
[329249301,1718201448487,-500.0,0.00016712,2]
[329249303,1718201448503,-500.0,0.00016712,2]
[329249305,1718201448520,-754.42,0.00016712,2]
[329249307,1718201448536,-500.0,0.00016712,2]
[329249309,1718201448551,-500.0,0.00016712,2]
[329249311,1718201448572,-500.0,0.00016712,2]
[329249313,1718201448585,-500.0,0.00016712,2]
[329249316,1718201448617,-500.0,0.00016712,2]
[329249318,1718201448633,-500.0,0.00016712,2]
[329249320,1718201448646,-576.65,0.00016712,2]
[329249323,1718201448660,-500.0,0.00016712,2]
[329249325,1718201448671,-500.0,0.00016712,2]
[329249326,1718201448685,-500.0,0.00016712,2]
[329249328,1718201448696,-1048.66,0.00016712,2]
[329249331,1718201448711,-501.65685285,0.00016712,2]
[329249333,1718201448732,-500.0,0.00016712,2]
[329249334,1718201448743,-500.0,0.00016712,2]
[329249336,1718201448757,-500.0,0.00016712,2]
[329249337,1718201448771,-922.1,0.00016712,2]
[329249339,1718201448783,-500.0,0.00016712,2]
[329249341,1718201448794,-1158.98,0.00016712,2]
[329249343,1718201448806,-500.0,0.00016712,2]
[329249345,1718201448822,-506.55197469,0.00016712,2]
[329249347,1718201448834,-500.0,0.00016712,2]
[329249348,1718201448848,-564.8,0.00016712,2]
[329249351,1718201448867,-509.88633484,0.00016712,2]
[329249353,1718201448888,-500.0,0.00016712,2]
[329249354,1718201448899,-926.29,0.00016712,2]
[329249356,1718201448915,-500.0,0.00016712,2]
[329249358,1718201448932,-500.0,0.00016712,2]
[329249359,1718201448948,-500.0,0.00016712,2]
[329249361,1718201448965,-2013.97,0.00016712,2]
[329249363,1718201448976,-500.0,0.00016712,2]
[329249364,1718201448987,-1200.82,0.00016712,2]
[329249367,1718201449004,-1726.6,0.00016712,2]
[329249368,1718201449016,-2002.29,0.00016712,2]
[329249370,1718201449028,-500.0,0.00016712,2]
[329249373,1718201449038,-500.0,0.00016712,2]
[329249376,1718201449077,-500.0,0.00016712,2]
[329249378,1718201449102,-599.88311515,0.00016712,2]
[329249380,1718201449149,-500.0,0.00016712,2]
[329249381,1718201449172,-831.61,0.00016712,2]
[329249383,1718201449186,-1877.02,0.00016712,2]
[329249385,1718201449201,-500.0,0.00016712,2]
[329249387,1718201449226,-500.0,0.00016712,2]
[329249388,1718201449238,-500.0,0.00016712,2]
[329249390,1718201449251,-500.0,0.00016712,2]
[329249392,1718201449265,-500.0,0.00016712,2]
[329249394,1718201449285,-500.0,0.00016712,2]
[329249402,1718201449427,-500.0,0.00016712,2]
[329249403,1718201449441,-500.0,0.00016712,2]
[329249404,1718201449454,-500.0,0.00016712,2]
[329249406,1718201449469,-500.0,0.00016712,2]
[329249408,1718201449488,-500.0,0.00016712,2]
[329249410,1718201449503,-500.0,0.00016712,2]
[329249412,1718201449524,-500.0,0.00016712,2]
[329249414,1718201449548,-500.0,0.00016712,2]
[329249416,1718201449565,-426.54230119,0.00016712,2]
[329249418,1718201449588,-5479.05,0.00016712,2]
[329249420,1718201449602,-1098.74,0.00016712,2]
[329249422,1718201449628,-1208.47,0.00016712,2]
[329249424,1718201449647,-3618.05,0.00016712,2]
[329249426,1718201449664,-500.0,0.00016712,2]
[329249428,1718201449677,-500.0,0.00016712,2]
[329249429,1718201449688,-503.20075727,0.00016712,2]
[329249432,1718201449700,-500.0,0.00016712,2]
[329249434,1718201449713,-500.0,0.00016712,2]
[329249436,1718201449725,-17386.73,0.00016712,2]
[329249437,1718201449738,-156.62261596,0.00016712,2]
[329249439,1718201449749,-500.0,0.00016712,2]
[329249441,1718201449761,-651.96,0.00016712,2]
[329249445,1718201449789,-500.0,0.00016712,2]
[329249447,1718201449803,-785.77,0.00016712,2]
[329249448,1718201449816,-2595.72,0.00016712,2]
[329249451,1718201449837,-500.0,0.00016712,2]
[329249453,1718201449851,-1084.9,0.00016712,2]
[329249455,1718201449867,-500.0,0.00016712,2]
[329249457,1718201449893,-500.0,0.00016712,2]
[329249459,1718201449915,-500.0,0.00016712,2]
[329249461,1718201449932,-5855.68,0.00016712,2]
[329249463,1718201449945,-1729.02,0.00016712,2]
[329249465,1718201449957,-500.0,0.00016712,2]
[329249467,1718201449970,-6458.08,0.00016712,2]
[329249469,1718201449981,-8650.31,0.00016712,2]
[329249471,1718201449991,-500.0,0.00016712,2]
[329249473,1718201450009,-13863.06,0.00016712,2]
[329249475,1718201450020,-500.0,0.00016712,2]
[329249477,1718201450031,-929.6,0.00016712,2]
[329249479,1718201450042,-500.0,0.00016712,2]
[329249481,1718201450056,-500.0,0.00016712,2]
[329249483,1718201450072,-500.0,0.00016712,2]
[329249485,1718201450082,-505.61753516,0.00016712,2]
[329249487,1718201450092,-500.0,0.00016712,2]
[329249489,1718201450105,-589.35,0.00016712,2]
[329249490,1718201450116,-1042.65,0.00016712,2]
[329249493,1718201450145,-500.0,0.00016712,2]
[329249495,1718201450161,-500.0,0.00016712,2]
[329249497,1718201450176,-500.0,0.00016712,2]
[329249499,1718201450189,-500.0,0.00016712,2]
[329249501,1718201450203,-500.0,0.00016712,2]
[329249503,1718201450216,-500.0,0.00016712,2]
[329249505,1718201450227,-500.0,0.00016712,2]
[329249507,1718201450249,-500.0,0.00016712,2]
[329249509,1718201450262,-500.0,0.00016712,2]
[329249511,1718201450287,-500.0,0.00016712,2]
[329249513,1718201450306,-500.0,0.00016712,2]
[329249515,1718201450332,-500.0,0.00016712,2]
[329249517,1718201450343,-500.0,0.00016712,2]
[329249519,1718201450356,-1007.57660034,0.00016749,2]
[329249521,1718201450369,-5281.92082876,0.00016773,2]
[329249523,1718201450380,-262.675895,0.00016867,2]
[329249524,1718201450392,-4991.79437,0.00016867,2]
[329249526,1718201450405,-4991.79437,0.00016867,2]
[329249529,1718201450419,-211.99148,0.00016867,2]
[329249530,1718201450436,-211.99148,0.00016867,2]
[329249532,1718201450456,-2045.875243,0.00016867,2]
[329249534,1718201450489,-2045.875243,0.00016867,2]
[329249536,1718201450501,-161.117024,0.00016867,2]
[329249538,1718201450515,-161.117024,0.00016867,2]
[329249540,1718201450528,-151.0,0.00016867,2]
[329249542,1718201450539,-151.0,0.00016867,2]
[329249543,1718201450555,-151.0,0.00016867,2]
[329249545,1718201450579,-153.0,0.00016867,2]
[329249547,1718201450591,-1007.57660034,0.00016886,2]
[329249549,1718201450608,-153.0,0.00016976,2]
[329249551,1718201450623,-153.0,0.00016976,2]
[329249553,1718201450634,-153.0,0.00016976,2]
[329249555,1718201450646,-153.0,0.00016976,2]
[329249557,1718201450659,-153.0,0.00016976,2]
[329249559,1718201450674,-320.1346889,0.00016976,2]
[329249561,1718201450686,-6682.41,0.00016984,2]
[329249563,1718201450698,-500.0,0.00016984,2]
[329249565,1718201450717,-806.51,0.00016984,2]
[329249567,1718201450729,-2695.46326575,0.00016985,2]
[329249569,1718201450744,-14774.23834254,0.00016985,2]
[329249572,1718201450761,-500.0,0.00016985,2]
[329249573,1718201450775,-500.0,0.00016985,2]
[329249575,1718201450794,-500.0,0.00016985,2]
[329249577,1718201450808,-151.0,0.00016985,2]
[329249579,1718201450821,-151.14377,0.00016985,2]
[329249582,1718201450841,-288.271004,0.00016985,2]
[329249583,1718201450860,-288.271004,0.00016985,2]
[329249585,1718201450873,-1701.47971,0.00016985,2]
[329249587,1718201450888,-1701.47971,0.00016985,2]
[329249589,1718201450901,-319.4026,0.00016985,2]
[329249591,1718201450914,-319.4026,0.00016985,2]
[329249593,1718201450926,-156.401885,0.00016985,2]
[329249595,1718201450937,-151.296538,0.00016985,2]
[329249597,1718201450947,-211.100469,0.00016985,2]
[329249599,1718201450965,-211.100469,0.00016985,2]
[329249601,1718201450979,-759.205445,0.00016985,2]
[329249603,1718201450991,-759.205445,0.00016985,2]
[329249605,1718201451002,-151.470938,0.00016985,2]
[329249607,1718201451013,-151.0,0.00016985,2]
[329249609,1718201451023,-3265.365085,0.00016985,2]
[329249611,1718201451034,-3265.365085,0.00016985,2]
[329249613,1718201451045,-6682.41,0.00016985,2]
[329249615,1718201451058,-6682.41,0.00016985,2]
[329249617,1718201451072,-6682.41,0.00016985,2]
[329249619,1718201451084,-6682.41,0.00016985,2]
[329249621,1718201451095,-1000.0,0.00016985,2]
[329249623,1718201451113,-1000.0,0.00016985,2]
[329249625,1718201451123,-1000.0,0.00016985,2]
[329249627,1718201451156,-1000.0,0.00016985,2]
[329249629,1718201451169,-1000.0,0.00016985,2]
[329249631,1718201451188,-1000.0,0.00016985,2]
[329249633,1718201451207,-1000.0,0.00016985,2]
[329249636,1718201451235,-1000.0,0.00016985,2]
[329249638,1718201451252,-151.0,0.00016985,2]
[329249640,1718201451272,-1000.0,0.00016985,2]
[329249643,1718201451297,-1000.0,0.00016985,2]
[329249644,1718201451313,-1000.0,0.00016985,2]
[329249646,1718201451328,-1000.0,0.00016985,2]
[329249649,1718201451352,-1000.0,0.00016985,2]
[329249652,1718201451372,-1000.0,0.00016985,2]
[329249653,1718201451389,-1000.0,0.00016985,2]
[329249655,1718201451404,-1000.0,0.00016985,2]
[329249658,1718201451423,-1000.0,0.00016985,2]
[329249661,1718201451449,-1000.0,0.00016985,2]
[329249663,1718201451460,-452.361845,0.00016985,2]
[329249665,1718201451472,-2116.775547,0.00016985,2]
[329249667,1718201451490,-2116.775547,0.00016985,2]
[329249669,1718201451502,-500.0,0.00016985,2]
[329249671,1718201451531,-500.0,0.00016985,2]
[329249673,1718201451543,-500.0,0.00016985,2]
[329249675,1718201451556,-364.500917,0.00016985,2]
[329249676,1718201451569,-364.500917,0.00016985,2]
[329249678,1718201451582,-151.0,0.00016985,2]
[329249679,1718201451598,-806.51,0.00016985,2]
[329249682,1718201451609,-806.51,0.00016985,2]
[329249684,1718201451630,-806.51,0.00016985,2]
[329249687,1718201451650,-221.011629,0.00016985,2]
[329249689,1718201451664,-221.011629,0.00016985,2]
[329249691,1718201451675,-151.0,0.00016985,2]
[329249693,1718201451689,-4991.79437,0.00016985,2]
[329249695,1718201451700,-4991.79437,0.00016985,2]
[329249697,1718201451712,-211.99148,0.00016985,2]
[329249698,1718201451727,-211.99148,0.00016985,2]
[329249700,1718201451739,-2045.875243,0.00016985,2]
[329249701,1718201451767,-2045.875243,0.00016985,2]
[329249703,1718201451784,-161.117024,0.00016985,2]
[329249705,1718201451799,-161.117024,0.00016985,2]
[329249706,1718201451811,-151.0,0.00016985,2]
[329249708,1718201451824,-151.0,0.00016985,2]
[329249710,1718201451838,-151.0,0.00016985,2]
[329249711,1718201451849,-500.0,0.00016986,2]
[329249713,1718201451859,-500.0,0.00016986,2]
[329249715,1718201451885,-500.0,0.00016986,2]
[329249717,1718201451896,-554.63,0.00016986,4]
[329249719,1718201451908,-500.0,0.00016986,2]
[329249721,1718201451919,-500.0,0.00016986,2]
[329249723,1718201451930,-232.91571348,0.00016986,2]
[329249725,1718201451941,-250.0,0.00016986,2]
[329249726,1718201451952,-500.0,0.00016986,2]
[329249729,1718201451970,-500.0,0.00016986,2]
[329249731,1718201451982,-521.8,0.00016986,2]
[329249733,1718201451997,-614.59243708,0.00016986,2]
[329249735,1718201452012,-500.0,0.00016986,2]
[329249737,1718201452024,-500.0,0.00016986,2]
[329249738,1718201452044,-555.158736,0.00016986,2]
[329249740,1718201452055,-500.0,0.00016986,2]
[329249742,1718201452067,-555.158736,0.00016986,2]
[329249744,1718201452079,-500.0,0.00016986,2]
[329249747,1718201452094,-500.0,0.00016986,2]
[329249748,1718201452106,-500.0,0.00016986,2]
[329249751,1718201452135,-448.42539172,0.00016986,2]
[329249753,1718201452156,-500.0,0.00016986,2]
[329249755,1718201452168,-1227.917234,0.00016986,2]
[329249756,1718201452178,-500.0,0.00016986,2]
[329249758,1718201452189,-901.64,0.00016986,2]
[329249760,1718201452200,-176.5077,0.00016986,2]
[329249762,1718201452211,-1227.917234,0.00016986,2]
[329249764,1718201452222,-542.58,0.00016986,2]
[329249766,1718201452233,-176.5077,0.00016986,2]
[329249768,1718201452244,-151.588282,0.00016986,2]
[329249770,1718201452256,-549.95,0.00016986,2]
[329249772,1718201452268,-500.0,0.00016986,2]
[329249774,1718201452287,-500.0,0.00016986,2]
[329249776,1718201452298,-762.56,0.00016986,2]
[329249778,1718201452308,-500.0,0.00016986,2]
[329249780,1718201452321,-500.0,0.00016986,2]
[329249782,1718201452334,-500.0,0.00016986,2]
[329249784,1718201452344,-500.0,0.00016986,2]
[329249786,1718201452358,-552.32294094,0.00016986,2]
[329249788,1718201452369,-500.0,0.00016986,2]
[329249791,1718201452382,-500.0,0.00016986,2]
[329249792,1718201452401,-151.0,0.00016986,2]
[329249794,1718201452420,-500.0,0.00016986,2]
[329249796,1718201452443,-256.94135,0.00016986,2]
[329249798,1718201452454,-256.94135,0.00016986,2]
[329249801,1718201452476,-500.0,0.00016986,2]
[329249802,1718201452492,-256.94135,0.00016986,2]
[329249804,1718201452510,-256.94135,0.00016986,2]
[329249806,1718201452541,-500.0,0.00016986,2]
[329249808,1718201452559,-500.0,0.00016986,2]
[329249809,1718201452574,-151.0,0.00016986,2]
[329249812,1718201452593,-636.0,0.00016986,2]
[329249814,1718201452610,-151.0,0.00016986,2]
[329249816,1718201452625,-151.0,0.00016986,2]
[329249817,1718201452636,-500.0,0.00016986,2]
[329249819,1718201452647,-500.0,0.00016986,2]
[329249821,1718201452661,-500.0,0.00016986,2]
[329249823,1718201452674,-151.0,0.00016986,2]
[329249825,1718201452685,-754.42,0.00016986,2]
[329249827,1718201452696,-500.0,0.00016986,2]
[329249829,1718201452707,-240.23,0.00016986,2]
[329249831,1718201452718,-500.0,0.00016986,2]
[329249833,1718201452729,-500.0,0.00016986,2]